bitfinex/quotes_ETHUSD_20251031
["timestamp","ask_amount","ask_price","bid_price","bid_amount"]
[1761895292437,5.99723791,3841.0,3840.5,0.005]
[1761895292641,0.59321449,3840.9,3840.5,0.005]
[1761895295268,0.56067004,3840.8,3840.5,0.005]
[1761895295439,0.03254615,3840.7,3840.5,0.005]
[1761895295845,0.59321534,3840.8,3840.5,0.005]
[1761895296044,0.0325453,3840.8,3840.5,0.005]
[1761895296246,0.56067004,3840.7,3840.5,0.005]
[1761895296448,0.03254699,3840.6,3840.1,0.012]
[1761895296648,5.5314849,3840.6,3840.1,0.012]
[1761895296846,5.49893791,3840.6,3840.1,0.012]
[1761895297462,5.49893791,3840.6,3840.1,1.83486634]
[1761895297644,5.49893791,3840.6,3840.1,0.012]
[1761895298172,0.03254784,3840.5,3840.1,0.012]
[1761895298337,5.49893791,3840.2,3840.1,0.012]
[1761895299955,6.06077899,3840.2,3840.1,0.012]
[1761895301153,6.06077899,3840.2,3840.1,0.017]
[1761895301746,0.56184108,3840.2,3840.1,1.83986919]
[1761895301945,0.1296,3840.2,3840.1,1.83986919]
[1761895302370,0.1296,3840.2,3840.1,1.84486919]
[1761895302677,0.1296,3840.4,3840.3,1.82277426]
[1761895302845,0.1296,3840.4,3840.1,0.012]
[1761895303247,0.1296,3840.4,3840.3,0.005]
[1761895303876,0.1296,3840.4,3840.3,1.82777426]
[1761895304082,0.1296,3840.4,3840.3,1.83277426]
[1761895304449,0.1296,3840.4,3840.3,0.005]
[1761895306866,0.1296,3840.4,3840.3,1.82777426]
[1761895309501,0.69169222,3840.4,3840.3,1.82777426]
[1761895310013,0.69169222,3840.4,3840.3,0.005]
[1761895310997,0.69169222,3840.4,3840.2,0.01964527]
[1761895311203,0.1296,3840.4,3840.1,1.83484763]
[1761895311407,0.4968,3840.2,3840.1,0.012]
[1761895311704,3.78463457,3840.2,3840.1,0.012]
[1761895311911,4.67123857,3840.2,3840.1,0.012]
[1761895312900,4.70378895,3840.2,3840.1,0.012]
[1761895313282,14.49204659,3840.2,3840.1,0.012]
[1761895313483,14.45949621,3840.2,3840.1,0.012]
[1761895314894,9.56536739,3840.2,3840.1,0.012]
[1761895315092,15.39305498,3840.2,3840.1,0.012]
[1761895315495,21.20319798,3840.2,3840.1,0.012]
[1761895315686,7.12264443,3839.8,3839.7,0.002]
[1761895315874,9.2408418,3839.8,3839.7,0.002]
[1761895316219,9.7219418,3839.8,3839.7,0.002]
[1761895317274,7.89893019,3839.8,3839.7,0.002]
[1761895318225,9.7219418,3839.8,3839.7,0.002]
[1761895319407,7.89893019,3839.8,3839.7,0.002]
[1761895319778,9.7219418,3839.8,3839.7,0.002]
[1761895320287,1.47009737,3839.8,3839.7,0.002]
[1761895320485,0.10439462,3840.4,3839.7,0.002]
[1761895320486,4.89412882,3840.0,3839.7,0.002]
[1761895320690,0.4968,3839.8,3839.7,0.002]
[1761895320913,0.56257871,3839.8,3839.7,0.002]
[1761895321129,4.89412882,3839.9,3839.7,0.007]
[1761895321427,4.92668175,3839.9,3839.7,0.007]
[1761895321779,0.56133535,3839.8,3839.7,0.007]
[1761895324191,0.56133535,3839.8,3839.7,1.83005909]
[1761895324395,0.7234597,3840.1,3839.7,2.20254439]
[1761895324591,4.89412882,3839.9,3839.7,0.002]
[1761895324796,0.16215377,3839.8,3839.7,0.002]
[1761895325326,0.16215377,3839.8,3839.7,0.007]
[1761895325327,0.1296,3839.8,3839.7,0.007]
[1761895325516,0.1296,3839.8,3839.7,1.83005909]
[1761895327096,0.1296,3839.8,3839.7,0.007]
[1761895327920,0.16215377,3839.8,3839.7,0.002]
[1761895328118,0.6264,3839.8,3839.7,0.002]
[1761895328623,0.6244,3839.8,3839.7,0.002]
[1761895329186,0.65695377,3839.8,3839.7,0.002]
[1761895329784,0.6244,3839.8,3839.7,0.002]
[1761895329989,0.1276,3839.8,3839.7,0.007]
[1761895330185,0.1276,3839.8,3839.7,1.83005909]
[1761895332537,0.03254869,3840.4,3839.9,1.82296386]
[1761895332538,0.56154509,3840.2,3839.9,1.82296386]
[1761895332715,0.69114509,3840.1,3839.9,1.82296386]
[1761895332915,0.1296,3840.1,3839.9,1.82296386]
[1761895333116,0.1296,3840.1,3840.0,0.005]
[1761895333318,0.69114509,3840.1,3840.0,0.005]
[1761895333516,0.1296,3840.1,3840.0,0.005]
[1761895333916,0.69114509,3840.1,3840.0,0.005]
[1761895334117,0.1296,3840.1,3840.0,0.005]
[1761895334622,0.1306,3840.1,3840.0,0.005]
[1761895334829,0.69214509,3840.1,3840.0,1.82791666]
[1761895335013,0.69214509,3840.1,3840.0,1.84756651]
[1761895335014,0.001,3840.1,3840.0,1.84756651]
[1761895335354,0.001,3840.1,3840.0,0.005]
[1761895335536,0.001,3840.1,3839.7,1.95463924]
[1761895336039,0.001,3840.1,3839.7,0.1316]
[1761895336238,0.56254509,3840.1,3839.8,1.82300582]
[1761895336411,0.001,3840.1,3839.8,1.82300582]
[1761895336615,0.56254509,3840.1,3839.8,1.82300582]
[1761895336830,0.001,3840.1,3839.7,0.1316]
[1761895337143,0.56254509,3840.1,3839.7,0.1316]
[1761895337457,0.001,3840.1,3839.8,1.82301161]
[1761895337611,0.001,3840.1,3839.7,1.95461992]
[1761895337612,0.56254509,3840.1,3839.7,1.95461992]
[1761895337810,0.001,3840.1,3839.7,1.95461992]
[1761895338037,0.001,3840.1,3839.8,1.82300012]
[1761895338038,0.56254509,3840.1,3839.8,1.82300012]
[1761895338358,0.001,3840.1,3839.7,0.002]
[1761895338639,0.6225,3839.8,3839.7,0.002]
[1761895338840,1.0742,3839.8,3839.7,0.002]
[1761895339141,1.6361723,3839.8,3839.7,0.002]
[1761895345517,1.1844723,3839.8,3839.7,0.002]
[1761895349736,1.6346723,3839.8,3839.7,0.002]
[1761895349938,2.52247301,3839.8,3839.7,0.002]
[1761895350568,12.85033262,3839.8,3839.7,0.002]
[1761895350767,8.48110262,3839.8,3839.7,0.002]
[1761895351277,8.48110262,3839.8,3839.6,0.002]
[1761895351278,18.71008391,3839.7,3839.6,0.002]
[1761895351478,17.85628221,3839.7,3839.6,0.002]
[1761895351690,13.33016859,3839.7,3839.6,0.002]
[1761895352278,14.73580273,3839.7,3839.6,0.002]
[1761895352784,31.29677059,3839.7,3839.6,0.002]
[1761895353092,13.70334959,3839.7,3839.6,0.002]
[1761895353393,15.10838719,3839.7,3839.6,0.002]
[1761895353790,12.38738519,3839.7,3839.6,0.002]
[1761895354184,10.98234759,3839.7,3839.6,0.002]
[1761895354385,26.27905119,3839.7,3839.6,0.002]
[1761895354585,23.26060919,3839.7,3839.6,0.002]
[1761895355000,12.38738519,3839.7,3839.6,0.002]
[1761895355193,10.98234759,3839.7,3839.6,0.002]
[1761895355521,13.76802459,3839.7,3839.6,0.002]
[1761895356039,2.22880052,3839.2,3839.1,0.012]
[1761895356327,3.6285755,3839.0,3838.9,0.002]
[1761895356488,1.8234865,3838.8,3838.3,0.002]
[1761895356689,9.78213387,3838.8,3838.3,0.002]
[1761895356983,12.02357052,3838.8,3838.3,0.002]
[1761895357319,11.08757233,3838.8,3838.3,0.002]
[1761895357886,8.81388583,3838.8,3838.3,0.002]
[1761895358121,11.08757233,3838.8,3838.3,0.002]
[1761895358828,15.98170115,3838.8,3838.3,0.002]
[1761895359518,11.08757233,3838.8,3838.3,0.002]
[1761895361090,8.14908583,3838.8,3838.3,0.002]
[1761895361288,7.26128512,3838.8,3838.3,0.002]
[1761895363039,5.45610112,3838.8,3838.7,0.009]
[1761895363337,5.45610112,3838.8,3838.7,0.002]
[1761895365217,5.45610112,3838.8,3838.7,0.009]
[1761895365528,4.89412882,3839.2,3838.7,0.009]
[1761895365722,0.59307836,3839.1,3838.7,0.009]
[1761895369398,0.59307836,3839.1,3839.0,0.007]
[1761895369623,0.03255971,3839.1,3839.0,0.007]
[1761895369792,0.59307836,3839.1,3839.0,0.007]
[1761895371528,0.1296,3839.0,3838.7,0.002]
[1761895371729,4.89412882,3838.9,3838.7,0.002]
[1761895372122,4.89412882,3838.9,3838.8,0.007]
[1761895372322,4.89412882,3838.9,3838.7,0.002]
[1761895372518,4.89412882,3838.9,3838.8,0.007]
[1761895375534,0.16216056,3839.0,3838.8,0.007]
[1761895375731,0.16216056,3839.0,3838.9,0.007]
[1761895376456,0.1296,3839.0,3838.9,0.007]
[1761895377012,0.1296,3839.0,3838.9,1.830439]
[1761895377310,0.001,3839.1,3839.0,1.8233915]
[1761895377510,0.001,3839.1,3839.0,1.8303915]
[1761895377737,0.001,3839.1,3839.0,0.007]
[1761895378540,0.001,3839.1,3839.0,1.8303915]
[1761895379308,0.001,3839.1,3839.0,1.85705831]
[1761895379512,0.001,3839.1,3839.0,1.85005831]
[1761895380310,0.001,3839.1,3839.0,1.85705831]
[1761895380533,0.001,3839.1,3839.0,2.24365682]
[1761895380835,0.001,3839.1,3839.0,2.37325682]
[1761895381036,0.001,3839.1,3839.0,2.35359001]
[1761895382449,0.001,3839.1,3839.0,2.37325682]
[1761895382650,0.001,3839.1,3839.0,2.35359001]
[1761895385242,0.001,3839.1,3839.0,2.37325682]
[1761895389819,0.001,3839.1,3839.0,2.35359001]
[1761895390103,0.001,3839.1,3839.0,2.37325682]
[1761895391599,0.001,3839.1,3839.0,3.77293682]
[1761895392495,0.001,3839.1,3839.0,3.76593682]
[1761895392701,0.001,3839.1,3839.0,3.74627001]
[1761895392906,0.001,3839.1,3839.0,3.75327001]
[1761895393867,0.001,3839.1,3839.0,3.77293682]
[1761895395373,0.001,3839.1,3839.0,3.75327001]
[1761895395582,0.001,3839.1,3839.0,3.77293682]
[1761895396115,0.001,3839.1,3839.0,3.75327001]
[1761895401217,0.001,3839.1,3839.0,3.77293682]
[1761895401726,0.001,3839.1,3839.0,4.15877401]
[1761895401927,0.001,3839.9,3839.8,1.82301161]
[1761895402113,0.001,3839.9,3839.8,8.93913134]
[1761895402289,0.001,3839.9,3839.8,8.9264781]
[1761895410442,0.001,3839.9,3839.8,3.41269277]
[1761895410646,0.001,3839.9,3839.8,3.40569277]
[1761895411561,0.4693,3839.9,3839.8,1.82301161]
[1761895411934,0.9571,3839.9,3839.8,1.95261161]
[1761895412127,0.001,3839.9,3839.8,1.95261161]
[1761895414331,0.9571,3839.9,3839.8,1.95261161]
[1761895415132,0.001,3839.9,3839.8,1.95261161]
[1761895415332,0.001,3839.9,3839.8,1.97926485]
[1761895415735,0.001,3839.9,3839.8,1.95261161]
[1761895419047,0.001,3839.9,3839.8,1.97226485]
[1761895420047,0.001,3839.9,3839.8,1.95261161]
[1761895422675,0.001,3839.9,3839.8,1.97226485]
[1761895422874,0.001,3839.9,3839.8,1.97926485]
[1761895423881,0.4693,3839.9,3839.8,1.95261161]
[1761895424058,0.4693,3839.9,3839.8,1.95461161]
[1761895424376,0.001,3839.9,3839.8,1.95461161]
[1761895424984,0.001,3839.9,3839.8,2.49900199]
[1761895426081,0.001,3839.9,3839.8,8.01278732]
[1761895426379,0.001,3839.9,3839.8,7.99313408]
[1761895426783,0.001,3839.9,3839.8,9.39281408]
[1761895426949,0.001,3839.9,3839.8,9.38581408]
[1761895427376,0.001,3839.9,3839.8,9.39281408]
[1761895430483,0.001,3840.5,3840.4,1.82272679]
[1761895430683,0.001,3841.2,3840.7,1.82258442]
[1761895430882,0.001,3841.2,3840.7,1.8492224]
[1761895431071,0.001,3841.2,3840.7,1.9858224]
[1761895431388,0.001,3841.2,3840.7,2.1803224]
[1761895431592,0.001,3841.2,3840.7,4.67094911]
[1761895432894,0.001,3841.2,3840.7,5.06685311]
[1761895433125,0.001,3841.2,3841.1,1.82239462]
[1761895433405,0.001,3841.2,3841.1,8.75549115]
[1761895433594,0.001,3841.2,3841.1,8.74285995]
[1761895433796,0.4962,3842.3,3842.2,1.82187288]
[1761895434210,0.9615,3842.3,3842.2,1.82187288]
[1761895436105,0.1816,3843.0,3842.5,1.82173064]
[1761895436106,0.4962,3842.6,3842.5,1.82173064]
[1761895436287,0.4962,3842.9,3842.6,1.82168323]
[1761895436688,0.1816,3843.0,3842.6,6.71317614]
[1761895437005,0.4962,3843.2,3842.6,6.71317614]
[1761895437369,0.4962,3843.2,3842.6,1.82868323]
[1761895438386,0.4962,3843.1,3842.6,1.82168323]
[1761895438580,0.9715,3842.7,3842.5,1.8217214]
[1761895438807,0.5062,3842.7,3842.5,1.8217214]
[1761895439012,0.9615,3842.6,3842.5,1.8217214]
[1761895440009,0.9615,3842.6,3842.0,0.4962]
[1761895440209,0.9615,3842.6,3841.9,1.39968]
[1761895440210,0.4653,3842.4,3842.3,1.82182546]
[1761895440621,0.9615,3842.4,3842.3,1.82182546]
[1761895441627,0.4653,3842.4,3842.3,1.82182546]
[1761895441932,0.5062,3842.7,3842.6,1.82168323]
[1761895442292,0.9715,3842.7,3842.6,1.82168323]
[1761895443410,0.9715,3842.7,3842.4,0.14920631]
[1761895443729,0.4653,3842.5,3842.4,1.95137805]
[1761895444106,0.9615,3842.5,3842.4,1.95137805]
[1761895445123,0.4653,3842.5,3842.4,1.95137805]
[1761895445425,0.5062,3842.7,3842.6,1.82168323]
[1761895445790,0.9715,3842.7,3842.6,1.82168323]
[1761895449549,0.4753,3842.7,3842.6,1.82168323]
[1761895449747,0.01,3842.7,3842.6,1.82868323]
[1761895449945,0.01,3842.7,3842.6,2.82473754]
[1761895451046,0.01,3842.7,3842.6,2.84434334]
[1761895454424,0.01,3842.7,3842.6,4.23141754]
[1761895454625,0.01,3842.7,3842.6,4.25102334]
[1761895456957,0.001,3843.2,3843.1,1.82144622]
[1761895457164,0.001,3843.2,3843.1,6.73253646]
[1761895457331,0.001,3843.2,3843.1,6.71293913]
[1761895458039,0.001,3843.2,3843.1,1.82844622]
[1761895460466,0.001,3843.2,3843.1,8.11261913]
[1761895460770,0.001,3843.2,3843.1,9.1234583]
[1761895461669,0.001,3843.2,3843.1,9.1164583]
[1761895462573,0.001,3843.2,3843.1,9.1234583]
[1761895463444,0.001,3843.2,3843.1,4.23196539]
[1761895463652,0.001,3843.2,3843.1,9.1164583]
[1761895463877,0.4879,3843.2,3843.1,3.22112622]
[1761895464077,0.9791,3843.2,3843.1,3.22112622]
[1761895464380,0.001,3843.2,3843.1,3.22112622]
[1761895465277,0.001,3843.2,3843.1,3.22812622]
[1761895465574,0.001,3843.2,3843.1,4.24113702]
[1761895466985,0.001,3843.2,3843.1,4.36373702]
[1761895468590,0.4879,3843.2,3843.1,4.36373702]
[1761895468788,0.4879,3843.2,3843.1,3.35072622]
[1761895469071,0.9791,3843.2,3843.1,1.95104622]
[1761895470574,0.9791,3843.2,3843.1,0.1296]
[1761895470786,0.9791,3843.2,3843.1,1.95104622]
[1761895477158,0.9791,3843.2,3843.1,0.1296]
[1761895478199,0.9791,3843.2,3843.1,1.95104622]
[1761895481270,0.9791,3843.2,3842.8,1.82358208]
[1761895481474,0.6683,3842.9,3842.8,1.95318208]
[1761895481923,1.1595,3842.9,3842.8,1.95318208]
[1761895482102,1.1595,3842.9,3842.8,1.95318842]
[1761895484814,1.1595,3842.9,3842.8,0.002]
[1761895495805,1.1605,3842.9,3842.8,0.002]
[1761895496530,1.19302751,3842.9,3842.8,0.002]
[1761895497333,1.1605,3842.9,3842.8,0.002]
[1761895504440,1.1605,3842.9,3842.8,1.82358842]
[1761895504961,1.1605,3842.9,3842.8,0.002]
[1761895506466,1.1605,3842.9,3842.8,1.82358842]
[1761895507267,1.1605,3842.9,3842.8,0.002]
[1761895507836,1.1605,3842.9,3842.8,1.82358842]
[1761895508590,0.4879,3842.9,3842.8,1.82358842]
[1761895508966,0.9584,3842.9,3842.8,1.82358842]
[1761895509565,1.1426,3842.9,3842.8,1.82358842]
[1761895510303,1.1426,3842.9,3842.8,0.002]
[1761895512364,1.1426,3842.9,3842.8,1.82358842]
[1761895512770,1.1426,3842.9,3842.8,0.002]
[1761895513764,1.1426,3842.9,3842.8,1.82358842]
[1761895514186,0.001,3842.9,3842.8,1.82358842]
[1761895514502,0.001,3842.9,3842.8,2.32667313]
[1761895514882,0.001,3842.9,3842.8,2.34627554]
[1761895515676,0.001,3842.9,3842.8,2.32667313]
[1761895518002,0.001,3842.9,3842.8,2.31967313]
[1761895519544,1.1001,3842.9,3842.8,0.1316]
[1761895519714,1.1001,3842.9,3842.8,0.002]
[1761895521189,1.1001,3842.9,3842.8,1.82358842]
[1761895521811,1.1001,3842.9,3842.8,0.002]
[1761895528429,3.48402218,3842.9,3842.8,0.002]
[1761895528627,4.59997939,3842.9,3842.8,0.002]
[1761895529318,2.77843837,3842.9,3842.8,0.002]
[1761895530050,4.59997939,3842.9,3842.8,0.002]
[1761895530427,2.77843837,3842.9,3842.8,0.002]
[1761895530622,4.56745188,3842.9,3842.8,0.002]
[1761895531053,2.74591086,3842.9,3842.8,0.002]
[1761895531232,2.77843837,3842.9,3842.8,0.002]
[1761895533515,5.00548339,3842.9,3842.8,0.002]
[1761895533715,11.90044798,3842.9,3842.8,0.002]
[1761895534051,1.82173064,3842.5,3842.4,0.002]
[1761895534350,1.82173064,3842.5,3842.0,0.002]
[1761895534351,2.2274243,3842.1,3842.0,0.002]
[1761895534652,8.80422434,3842.1,3842.0,0.002]
[1761895534841,9.26329005,3842.1,3842.0,0.002]
[1761895535039,9.36762503,3842.1,3842.0,0.002]
[1761895540032,2.05042014,3842.1,3842.0,0.002]
[1761895540232,3.68750358,3842.1,3842.0,0.002]
[1761895540436,4.24988474,3842.1,3842.0,0.002]
[1761895544753,3.84438074,3842.1,3842.0,0.002]
[1761895548548,2.02246044,3842.1,3842.0,0.002]
[1761895548798,3.28199958,3842.1,3842.0,0.002]
[1761895549087,3.84438074,3842.1,3842.0,0.002]
[1761895553316,9.33966533,3842.1,3842.0,0.002]
[1761895553497,9.30713104,3842.1,3842.0,0.002]
[1761895554893,8.81553104,3842.1,3842.0,0.002]
[1761895555292,9.27383104,3842.1,3842.0,0.002]
[1761895557288,8.66662952,3842.1,3842.0,0.002]
[1761895560524,9.07213352,3842.1,3842.0,0.002]
[1761895560681,10.00825678,3842.1,3842.0,0.002]
[1761895561482,2.227614,3841.7,3841.3,0.002]
[1761895561681,10.76441083,3841.7,3841.3,0.002]
[1761895561995,10.73187316,3841.7,3841.3,0.002]
[1761895562333,14.62227556,3841.7,3841.3,0.002]
[1761895562538,1.8222523,3841.4,3841.2,0.002]
[1761895562812,13.27038392,3841.3,3841.2,0.002]
[1761895563014,15.5184426,3841.3,3841.2,0.002]
[1761895563206,15.62281543,3841.3,3841.2,0.002]
[1761895563405,1.82234718,3841.2,3840.9,0.002]
[1761895563610,8.57030514,3841.0,3840.9,0.002]
[1761895563809,9.63684072,3841.0,3840.9,0.002]
[1761895564125,10.09514072,3841.0,3840.9,0.002]
[1761895564416,11.49949887,3841.0,3840.9,0.002]
[1761895565231,10.09514072,3841.0,3840.9,0.002]
[1761895568340,11.02959188,3841.0,3840.9,0.002]
[1761895570098,5.68320881,3841.0,3840.9,0.002]
[1761895570303,4.24460323,3841.0,3840.9,0.002]
[1761895570531,5.14095083,3841.0,3840.9,0.002]
[1761895570838,5.10840723,3841.0,3840.9,0.002]
[1761895574647,4.54602607,3841.0,3840.9,0.002]
[1761895574851,5.13880983,3841.0,3840.9,0.002]
[1761895575026,5.49713066,3841.0,3840.9,0.002]
[1761895575215,4.09745066,3841.0,3840.9,0.002]
[1761895575550,4.12999426,3841.0,3840.9,0.002]
[1761895575757,4.58829426,3841.0,3840.9,0.002]
[1761895576051,5.95543066,3841.0,3840.9,0.002]
[1761895576353,1.82282172,3840.2,3839.8,0.002]
[1761895576553,7.66185517,3840.2,3839.8,0.002]
[1761895576728,8.18954495,3840.2,3839.8,0.002]
[1761895576930,8.59504895,3840.2,3839.8,0.002]
[1761895577143,9.99472895,3840.2,3839.8,0.002]
[1761895577450,10.49914051,3840.2,3839.8,0.002]
[1761895578951,10.52034051,3840.2,3839.8,0.002]
[1761895580149,9.58074051,3840.2,3839.8,0.002]
[1761895580361,9.17523651,3840.2,3839.8,0.002]
[1761895581335,7.77555651,3840.2,3840.1,0.021]
[1761895582155,7.77555651,3840.2,3840.1,0.01]
[1761895582556,8.23345651,3840.2,3840.1,0.012]
[1761895585167,10.10393651,3840.2,3840.1,0.012]
[1761895585739,10.50944051,3840.2,3840.1,0.012]
[1761895586664,10.10393651,3840.2,3840.1,0.012]
[1761895587030,10.50944051,3840.2,3840.1,0.012]
[1761895588038,15.39752358,3840.2,3840.1,0.012]
[1761895588338,26.43394869,3840.2,3840.1,0.012]
[1761895588739,20.35381662,3840.2,3840.1,0.012]
[1761895588955,15.69847262,3840.2,3840.1,0.012]
[1761895589134,14.76466851,3840.2,3840.1,0.012]
[1761895589573,13.62912251,3840.2,3840.1,0.012]
[1761895589780,10.50944051,3840.2,3840.1,0.012]
[1761895590562,4.28715344,3840.2,3840.1,0.012]
[1761895590739,3.81529226,3840.2,3840.1,0.012]
[1761895591943,0.56024016,3840.2,3840.1,0.023]
[1761895592133,0.59279054,3840.2,3840.1,0.023]
[1761895592329,2.41561226,3840.2,3840.1,0.023]
[1761895593734,0.59279054,3840.2,3840.1,0.023]
[1761895593945,0.56024016,3840.2,3840.1,0.023]
[1761895594148,0.56024016,3840.2,3840.1,0.034]
[1761895594849,0.56024016,3840.2,3840.1,2.04276437]
[1761895595048,0.59278546,3840.8,3840.1,0.21989518]
[1761895595278,0.56024016,3840.7,3840.2,0.03064409]
[1761895595585,0.0325453,3840.8,3840.2,0.03064409]
[1761895595586,0.56024016,3840.6,3840.2,0.03064409]
[1761895595744,0.56024016,3840.5,3840.3,0.011]
[1761895595947,0.56024016,3840.4,3840.3,0.011]
[1761895596148,0.56024016,3840.5,3840.3,0.011]
[1761895596344,0.1296,3840.6,3840.5,0.011]
[1761895596590,0.69132894,3840.6,3840.5,0.011]
[1761895596752,0.69132894,3840.6,3840.5,0.022]
[1761895597380,0.1296,3840.6,3840.5,0.022]
[1761895597944,0.56172894,3840.7,3840.5,0.022]
[1761895598151,0.56172894,3840.8,3840.6,0.011]
[1761895598679,0.56172894,3840.8,3840.7,0.011]
[1761895598854,0.001,3841.1,3840.8,1.82249013]
[1761895599056,0.001,3841.1,3841.0,0.011]
[1761895599258,0.001,3841.1,3841.0,0.022]
[1761895600289,2.28129923,3841.1,3840.1,0.023]
[1761895600461,4.88808307,3840.5,3840.1,0.012]
[1761895600652,0.03254869,3840.4,3840.1,0.012]
[1761895601293,4.88808307,3840.3,3840.1,0.012]
[1761895601447,0.16215038,3840.2,3840.1,0.012]
[1761895602497,0.16215038,3840.2,3840.1,0.023]
[1761895603382,0.1296,3840.2,3840.1,0.034]
[1761895604183,0.1296,3840.5,3840.2,1.82282172]
[1761895604348,0.1296,3840.5,3840.3,1.8424056]
[1761895604552,0.1296,3840.5,3840.4,0.011]
[1761895604783,0.1296,3840.5,3840.4,0.022]
[1761895604975,0.1296,3840.5,3840.4,0.011]
[1761895606485,0.1296,3840.5,3840.4,0.022]
[1761895606684,0.1296,3840.7,3840.4,1.84472679]
[1761895606891,0.1296,3840.7,3840.4,1.83372679]
[1761895607186,0.1296,3840.7,3840.6,0.011]
[1761895618004,0.1296,3840.7,3840.6,0.022]
[1761895618805,0.1296,3840.7,3840.6,0.011]
[1761895619378,0.1296,3840.7,3840.6,0.022]
[1761895620209,0.1296,3840.7,3840.6,1.84663188]
[1761895620413,0.001,3840.9,3840.6,2.21552907]
[1761895620709,0.001,3840.9,3840.8,1.83353697]
[1761895621009,0.001,3840.9,3840.6,0.37089719]
[1761895621211,0.001,3840.9,3840.6,0.002]
[1761895621998,0.56282668,3840.9,3840.6,0.002]
[1761895622202,0.001,3840.9,3840.6,0.002]
[1761895622588,0.4912,3840.7,3840.6,0.002]
[1761895622789,1.08572093,3840.7,3840.6,0.002]
[1761895623012,2.47713573,3840.7,3840.6,0.002]
[1761895623879,1.98853573,3840.7,3840.6,0.002]
[1761895624100,1.49733573,3840.7,3840.6,0.002]
[1761895624313,0.59452093,3840.7,3840.6,0.002]
[1761895625416,1.57432093,3840.7,3840.6,0.002]
[1761895625617,1.54177478,3840.7,3840.6,0.002]
[1761895625953,3.39690535,3840.7,3840.6,0.002]
[1761895626893,1.08572093,3840.7,3840.6,0.002]
[1761895627220,1.38959734,3840.7,3840.6,0.002]
[1761895627590,0.56197478,3840.7,3840.6,0.002]
[1761895627790,0.59452093,3840.7,3840.6,0.013]
[1761895627991,0.59452093,3840.7,3840.6,0.002]
[1761895628938,0.56197478,3840.7,3840.6,0.002]
[1761895630140,1.54177478,3840.7,3840.6,0.002]
[1761895630339,7.38229093,3840.7,3840.6,0.002]
[1761895631709,2.22827826,3840.3,3840.2,0.002]
[1761895631909,11.15002104,3840.3,3840.2,0.002]
[1761895632110,3.22250172,3840.2,3840.1,0.012]
[1761895632417,8.16069028,3840.2,3840.1,0.012]
[1761895633330,6.75498414,3840.2,3840.1,0.012]
[1761895633732,6.38343892,3840.2,3840.1,0.012]
[1761895634041,6.78894292,3840.2,3840.1,0.012]
[1761895634217,7.72507176,3840.2,3840.1,0.012]
[1761895635138,6.78894292,3840.2,3840.1,0.012]
[1761895636127,7.72468337,3840.2,3840.1,0.012]
[1761895637259,6.78894292,3840.2,3840.1,0.012]
[1761895637650,6.89334135,3840.2,3840.1,0.012]
[1761895638430,6.40474135,3840.2,3840.1,0.012]
[1761895638632,5.89483892,3840.2,3840.1,0.012]
[1761895639176,4.49515892,3840.2,3840.1,0.012]
[1761895639375,5.0038093,3840.2,3840.1,0.012]
[1761895644278,3.18098758,3840.2,3840.1,0.012]
[1761895644480,2.70488758,3840.2,3840.1,0.012]
[1761895644667,1.08572516,3840.2,3840.1,0.012]
[1761895644980,0.59452516,3840.2,3840.1,0.012]
[1761895645187,0.59452516,3840.2,3840.1,0.025]
[1761895645359,0.93574045,3840.6,3840.1,0.025]
[1761895645360,1.82277428,3840.3,3840.1,0.025]
[1761895645688,0.59452516,3840.2,3840.1,0.025]
[1761895645873,0.03255038,3840.2,3840.1,0.025]
[1761895646385,0.59452516,3840.2,3840.1,0.025]
[1761895646579,0.03255038,3840.2,3840.1,0.025]
[1761895647554,0.59452347,3840.4,3840.1,0.025]
[1761895647859,0.56197478,3840.3,3840.1,0.025]
[1761895648066,0.03255038,3840.2,3840.1,0.025]
[1761895648583,3.61836927,3840.2,3840.1,0.012]
[1761895648774,3.37664688,3840.2,3840.1,0.012]
[1761895655986,3.37764688,3840.2,3840.1,0.012]
[1761895658312,4.31338733,3840.2,3840.1,0.012]
[1761895660145,3.78315088,3840.2,3840.1,0.012]
[1761895660343,5.07154038,3840.2,3840.1,0.012]
[1761895661154,10.57227886,3840.2,3840.1,0.012]
[1761895661362,10.53972848,3840.2,3840.1,0.012]
[1761895663451,10.9112737,3840.2,3840.1,0.012]
[1761895664217,12.3185145,3840.2,3840.1,0.012]
[1761895665113,10.9112737,3840.2,3840.1,0.012]
[1761895666618,10.4139737,3840.2,3840.1,0.012]
[1761895666942,10.04242848,3840.2,3840.1,0.012]
[1761895667142,10.53972848,3840.2,3840.1,0.012]
[1761895669624,11.94696928,3840.2,3840.1,0.012]
[1761895672408,12.3185145,3840.2,3840.1,0.012]
[1761895674779,10.9112737,3840.2,3840.1,0.012]
[1761895677296,2.37617836,3840.2,3840.1,0.025]
[1761895677601,0.56297478,3840.2,3840.1,0.025]
[1761895677771,0.59552516,3840.2,3840.1,0.025]
[1761895679389,5.48754567,3840.2,3840.1,0.025]
[1761895679588,5.45499529,3840.2,3840.1,0.025]
[1761895682615,0.56297478,3840.2,3840.1,0.038]
[1761895683178,0.56297478,3840.2,3840.1,0.22429487]
[1761895683504,0.56297478,3840.2,3840.1,0.038]
[1761895683877,0.56297478,3840.2,3840.1,1.86086919]
[1761895684988,0.56297478,3840.2,3840.1,0.038]
[1761895686421,0.56297478,3840.2,3840.1,0.025]
[1761895686619,5.45499529,3840.2,3840.1,0.012]
[1761895687219,5.45499529,3840.2,3840.1,0.025]